bitfinex-derivatives/quotes_BTCF0:USTF0_20250114
["timestamp","ask_amount","ask_price","bid_price","bid_amount"]
[1736860925025,0.0625,96040.0,96028.0,0.3608]
[1736860925026,0.0625,96040.0,96039.0,0.052085]
[1736860925231,0.3608,96042.0,96041.0,0.052084]
[1736860925930,0.37283441,96042.0,96041.0,0.052084]
[1736860926240,0.052086,96038.0,96037.0,0.004]
[1736860926430,0.052086,96038.0,96037.0,0.056086]
[1736860926627,0.052086,96038.0,96037.0,0.052086]
[1736860927238,0.052089,96032.0,96031.0,0.009]
[1736860927442,0.052089,96032.0,96025.0,0.052092]
[1736860927443,0.3608,96032.0,96026.0,0.052092]
[1736860927635,0.052092,96027.0,96026.0,0.052092]
[1736860929729,0.052092,96027.0,96026.0,0.061092]
[1736860930234,0.052092,96027.0,96026.0,0.052092]
[1736860930436,0.053092,96027.0,96026.0,0.061092]
[1736860930938,0.054092,96027.0,96026.0,0.067092]
[1736860931741,0.002,96027.0,96026.0,0.067092]
[1736860932935,0.054092,96027.0,96026.0,0.067092]
[1736860933640,0.054092,96027.0,96026.0,0.015]
[1736860934438,0.054092,96027.0,96026.0,0.067092]
[1736860935637,0.002,96027.0,96026.0,0.067092]
[1736860936738,0.054092,96027.0,96026.0,0.067092]
[1736860941944,0.002,96027.0,96026.0,0.067092]
[1736860944243,0.054092,96027.0,96026.0,0.067092]
[1736860945144,0.054092,96027.0,96026.0,0.427892]
[1736860945145,0.002,96027.0,96026.0,0.427892]
[1736860945450,0.3608,96051.0,96050.0,0.052079]
[1736860947141,0.3608,96051.0,96050.0,0.054079]
[1736860957152,0.3608,96062.0,96050.0,0.054079]
[1736860957153,0.3608,96072.0,96050.0,0.3628]
[1736860957353,0.3608,96072.0,96071.0,0.052068]
[1736860957748,0.052065,96078.0,96077.0,0.052065]
[1736860959655,0.061065,96078.0,96077.0,0.053065]
[1736860960455,0.064065,96078.0,96077.0,0.053065]
[1736860961154,0.07614319,96078.0,96077.0,0.053065]
[1736860963650,0.02407819,96078.0,96077.0,0.053065]
[1736860966244,0.07614219,96078.0,96077.0,0.053065]
[1736860976551,0.07614219,96078.0,96077.0,0.001]
[1736860977656,0.052073,96062.0,96061.0,0.052073]
[1736860978358,0.052074,96060.0,96059.0,0.3608]
[1736860979058,0.052074,96060.0,96052.0,0.052078]
[1736860979059,0.05208,96048.0,96047.0,0.052081]
[1736860980863,0.05208,96048.0,96047.0,0.055081]
[1736860981564,0.05208,96048.0,96047.0,0.057081]
[1736860989962,0.01163702,96049.0,96047.0,0.057081]
[1736860990167,0.052079,96052.0,96048.0,0.05208]
[1736860990370,0.052079,96052.0,96051.0,0.052079]
[1736860991964,0.01135275,96060.0,96047.0,0.004]
[1736860992161,0.052076,96056.0,96055.0,0.052074]
[1736860992367,0.42446,96061.0,96047.0,0.002]
[1736860992667,0.475774,96061.0,96060.0,0.052074]
[1736860992968,0.3608,96061.0,96060.0,0.052074]
[1736860993170,0.37248374,96061.0,96060.0,0.052074]
[1736860994864,0.37548374,96061.0,96060.0,0.052074]
[1736860995865,0.37248374,96061.0,96060.0,0.053074]
[1736860996273,0.37248374,96061.0,96060.0,0.055074]
[1736860996666,0.01168374,96061.0,96060.0,0.055074]
[1736860996872,0.052073,96062.0,96061.0,0.052073]
[1736860997874,0.06326401,96062.0,96061.0,0.052073]
[1736860998076,0.06326401,96062.0,96061.0,0.053073]
[1736860998879,0.06326401,96062.0,96061.0,0.055073]
[1736860999776,0.06326401,96062.0,96061.0,0.054073]
[1736861000172,0.12361558,96062.0,96061.0,0.054073]
[1736861001073,0.12361558,96062.0,96061.0,0.001]
[1736861001275,0.052083,96044.0,96043.0,0.052083]
[1736861002075,0.052083,96043.0,96041.0,0.052084]
[1736861002975,0.052083,96043.0,96031.0,0.3929]
[1736861002976,0.052083,96043.0,96036.0,0.052087]
[1736861003177,0.052083,96043.0,96038.0,0.052085]
[1736861003374,0.082579,96050.0,96031.0,0.3614]
[1736861003375,0.3608,96046.0,96031.0,0.3614]
[1736861003569,0.052092,96027.0,96026.0,0.18723832]
[1736861003769,0.412892,96027.0,96026.0,0.18723832]
[1736861003971,0.412892,96027.0,96026.0,0.18717832]
[1736861004170,0.412892,96027.0,96011.0,0.3608]
[1736861004171,0.052093,96025.0,96024.0,8.8e-07]
[1736861004369,0.052101,96009.0,96008.0,0.37503664]
[1736861004573,0.412901,96009.0,96008.0,1e-08]
[1736861005982,0.48438907,96009.0,95996.0,0.0306]
[1736861006176,0.052106,96002.0,95999.0,0.412907]
[1736861006483,0.052106,96001.0,95999.0,0.412907]
[1736861006979,0.052106,96001.0,95999.0,0.3608]
[1736861008572,0.053106,96001.0,95999.0,0.3698]
[1736861010478,0.054106,96001.0,95999.0,0.3758]
[1736861010870,0.054106,96001.0,95999.0,0.015]
[1736861014380,0.3608,96000.0,95977.0,0.3608]
[1736861014687,0.052113,95988.0,95977.0,0.3608]
[1736861014881,0.052113,95988.0,95977.0,0.412919]
[1736861015183,0.052113,95988.0,95977.0,0.413479]
[1736861015374,0.052113,95988.0,95978.0,0.052118]
[1736861016979,0.053113,95988.0,95987.0,0.3628]
[1736861017682,0.053113,95988.0,95987.0,0.3718]
[1736861018069,0.053113,95988.0,95987.0,0.3628]
[1736861018276,0.06581732,95988.0,95987.0,0.3638]
[1736861018676,0.06581732,95988.0,95987.0,0.3618]
[1736861022586,0.06581732,95988.0,95987.0,0.001]
[1736861022587,0.06681732,95988.0,95987.0,0.001]
[1736861022784,0.052122,95972.0,95971.0,0.0634]
[1736861023676,0.052122,95972.0,95971.0,0.115522]
[1736861023883,0.052122,95972.0,95971.0,0.0634]
[1736861024089,0.053122,95972.0,95971.0,0.0654]
[1736861024594,0.054122,95972.0,95971.0,0.0724]
[1736861027391,0.053122,95972.0,95971.0,0.0724]
[1736861027591,0.052122,95972.0,95971.0,0.0654]
[1736861027894,0.052122,95972.0,95971.0,0.121522]
[1736861029192,0.3608,95990.0,95971.0,0.0684]
[1736861029395,0.052117,95980.0,95979.0,0.3608]
[1736861030592,0.3608,96000.0,95979.0,0.3608]
[1736861030593,0.3608,96000.0,95989.0,0.05211]
[1736861030797,0.052111,95995.0,95994.0,0.052107]
[1736861031998,0.058111,95995.0,95994.0,0.053107]
[1736861032697,0.006,95995.0,95994.0,0.053107]
[1736861032992,0.10420397,96020.0,95994.0,0.001]
[1736861033198,0.052101,96009.0,96008.0,0.3608]
[1736861033593,0.052101,96009.0,96008.0,0.412902]
[1736861034694,0.052101,96009.0,96008.0,0.413902]
[1736861035094,0.052101,96009.0,96008.0,0.3618]
[1736861035296,0.14156488,96009.0,96008.0,0.3618]
[1736861035499,0.14156488,96009.0,96008.0,0.413902]
[1736861035796,0.09346388,96009.0,96008.0,0.413902]
[1736861036597,0.013,96009.0,96008.0,0.413902]
[1736861036995,0.013,96009.0,96008.0,0.3618]
[1736861036996,0.065101,96009.0,96008.0,0.3618]
[1736861038098,0.061101,96009.0,96008.0,0.3618]
[1736861038399,0.061101,96009.0,96008.0,0.3638]
[1736861038898,0.052101,96009.0,96008.0,0.3628]
[1736861039098,0.053101,96009.0,96008.0,0.3718]
[1736861039693,0.053101,96009.0,96008.0,0.011]
[1736861040297,0.053101,96009.0,96008.0,0.009]
[1736861040492,0.052101,96009.0,96008.0,0.004]
[1736861040698,0.052101,96009.0,96008.0,0.007]
[1736861041206,0.052103,96007.0,96006.0,0.052103]
[1736861041397,0.052099,96013.0,96000.0,0.3608]
[1736861041705,0.052106,96001.0,96000.0,0.3608]
[1736861042200,0.052111,95992.0,95991.0,0.0333]
[1736861042405,0.052111,95991.0,95990.0,0.0314]
[1736861042792,0.052111,95991.0,95989.0,0.3608]
[1736861042998,0.052112,95990.0,95989.0,0.3608]
[1736861044203,0.05211,95996.0,95995.0,0.052108]
[1736861044396,0.30059114,96013.0,95991.0,0.3608]
[1736861044600,0.052105,96004.0,96003.0,0.412904]
[1736861045703,0.052105,96004.0,96003.0,0.3608]
[1736861046398,0.055105,96004.0,96003.0,0.3608]
[1736861046906,0.052105,96004.0,96003.0,0.3608]
[1736861047109,0.055105,96004.0,96003.0,0.3608]
[1736861048706,0.056105,96004.0,96003.0,0.3608]
[1736861049300,0.056105,96004.0,96003.0,0.412905]
[1736861049699,0.056105,96004.0,96003.0,0.3608]
[1736861050099,0.05211,95996.0,95992.0,0.0636]
[1736861050305,0.05211,95996.0,95995.0,0.052109]
[1736861051404,0.05211,95993.0,95992.0,0.0636]
[1736861052502,0.05211,95993.0,95992.0,0.0646]
[1736861052703,0.05211,95993.0,95992.0,0.001]
[1736861052901,0.05211,95993.0,95992.0,0.002]
[1736861053307,0.05211,95993.0,95992.0,0.001]
[1736861053507,0.05211,95993.0,95992.0,0.002]
[1736861055118,0.06323392,95993.0,95992.0,0.002]
[1736861056508,0.14383555,95993.0,95992.0,0.002]
[1736861057808,0.14383555,95993.0,95992.0,0.001]
[1736861058013,0.052116,95983.0,95982.0,0.3608]
[1736861058719,0.052116,95983.0,95982.0,0.412916]
[1736861059316,0.01212392,95993.0,95982.0,0.412916]
[1736861059513,0.05311,95993.0,95992.0,0.412911]
[1736861059714,0.24849214,95999.0,95998.0,0.052107]
[1736861060406,0.07958511,96003.0,96002.0,0.052105]
[1736861060617,0.07958511,96003.0,96002.0,0.412905]
[1736861061116,0.13169011,96003.0,96002.0,0.412905]
[1736861062221,0.052105,96003.0,96002.0,0.412905]
[1736861062613,0.053105,96003.0,96002.0,0.412905]
[1736861064321,0.056105,96003.0,96002.0,0.412905]
[1736861067225,0.056105,96003.0,96002.0,0.3608]
[1736861068822,0.05211,95994.0,95993.0,0.0625]
[1736861069912,0.052115,95984.0,95983.0,0.412915]
[1736861072032,0.052115,95984.0,95983.0,0.417915]
[1736861073225,0.052115,95984.0,95983.0,0.420915]
[1736861085833,0.052115,95984.0,95983.0,0.417915]
[1736861086035,0.052115,95984.0,95983.0,0.419915]
[1736861087941,0.052115,95984.0,95983.0,0.3678]
[1736861088334,0.052115,95984.0,95983.0,0.3668]
[1736861089236,0.052115,95984.0,95983.0,0.3648]
[1736861089430,0.13193428,95984.0,95983.0,0.003]
[1736861090224,0.13193428,95984.0,95983.0,0.002]
[1736861090433,0.13193428,95984.0,95983.0,0.003]
[1736861091037,0.13193428,95984.0,95983.0,0.002]
[1736861092435,0.052124,95968.0,95961.0,0.052127]
[1736861092643,0.052124,95968.0,95967.0,0.052124]
[1736861093638,0.052122,95972.0,95971.0,0.05212]
[1736861095633,0.053122,95972.0,95971.0,0.05812]
[1736861096035,0.053122,95972.0,95971.0,0.05912]
[1736861097141,0.06431387,95972.0,95971.0,0.05912]
[1736861100443,0.001,95972.0,95971.0,0.05912]
[1736861100643,0.052114,95991.0,95990.0,0.052112]
[1736861100834,0.06309558,95991.0,95990.0,0.3608]
[1736861101942,0.14375437,95991.0,95990.0,0.3608]
[1736861102343,0.14575437,95991.0,95990.0,0.412912]
[1736861102737,0.14375437,95991.0,95990.0,0.412912]
[1736861102943,0.14675437,95991.0,95990.0,0.412912]
[1736861103742,0.14675137,95991.0,95990.0,0.412912]
[1736861104444,0.14675137,95991.0,95990.0,0.417912]
[1736861104445,0.14375137,95991.0,95990.0,0.417912]
[1736861104841,0.14275137,95991.0,95990.0,0.418912]
[1736861105236,0.14275137,95991.0,95990.0,0.058112]
[1736861105636,0.14275137,95991.0,95990.0,0.057112]
[1736861105944,0.14275137,95991.0,95990.0,0.058112]
[1736861107243,0.14275137,95991.0,95990.0,0.057112]
[1736861108044,0.14275137,95991.0,95990.0,0.005]
[1736861109749,0.14275137,95991.0,95990.0,0.004]
[1736861109950,0.14275137,95991.0,95990.0,0.005]
[1736861110743,0.14275137,95991.0,95990.0,0.001]
[1736861110945,0.14275137,95991.0,95990.0,0.005]
[1736861111344,0.14275137,95991.0,95990.0,0.001]
[1736861111540,0.14275137,95991.0,95990.0,0.004]
[1736861112137,0.14275137,95991.0,95971.0,0.052122]
[1736861112138,0.052116,95982.0,95966.0,0.412925]
[1736861112446,0.052124,95967.0,95966.0,0.412925]
[1736861113950,0.053124,95967.0,95966.0,0.421925]
[1736861114549,0.06405424,95967.0,95966.0,0.423925]
[1736861116139,0.053124,95967.0,95966.0,0.423925]
[1736861116645,0.001,95967.0,95966.0,0.423925]
[1736861117650,0.052116,95983.0,95982.0,0.052114]
[1736861119051,0.24849214,96000.0,95979.0,0.3608]
[1736861119249,0.30059914,96000.0,95993.0,0.05211]
[1736861119858,0.17126727,95999.0,95993.0,0.05211]
[1736861120555,0.052112,95994.0,95993.0,0.05211]
[1736861121756,0.052112,95994.0,95993.0,0.05511]
[1736861122441,0.052112,95994.0,95993.0,0.003]
[1736861123447,0.052114,95986.0,95985.0,0.052114]
[1736861125056,0.13138208,95986.0,95985.0,0.057114]
[1736861125349,0.13238208,95986.0,95985.0,0.057114]
[1736861125651,0.08026808,95986.0,95985.0,0.058114]
[1736861126252,0.08026808,95986.0,95985.0,0.057114]
[1736861126553,0.08026808,95986.0,95985.0,0.059114]
[1736861126945,0.09126406,95986.0,95985.0,0.059114]
[1736861127150,0.14337806,95986.0,95985.0,0.059114]
[1736861127960,0.14337806,95986.0,95985.0,0.058114]
[1736861129854,0.14237806,95986.0,95985.0,0.053114]
[1736861130056,0.14337806,95986.0,95985.0,0.058114]
[1736861130464,0.06310998,95986.0,95985.0,0.053114]
[1736861130646,0.06410998,95986.0,95985.0,0.058114]
[1736861131455,0.06410998,95986.0,95985.0,0.006]
[1736861131655,0.06310998,95986.0,95985.0,0.006]
[1736861131955,0.052123,95970.0,95969.0,0.412922]
[1736861133855,0.053123,95970.0,95969.0,0.417922]
[1736861134962,0.053123,95970.0,95969.0,0.418922]
[1736861135665,0.053123,95970.0,95969.0,0.417922]
[1736861136367,0.053123,95970.0,95969.0,0.413922]
[1736861149695,0.24849214,95991.0,95969.0,0.413922]
[1736861149904,0.052117,95983.0,95982.0,0.052116]
[1736861150407,0.052121,95975.0,95974.0,0.05212]
[1736861151407,0.13103638,95975.0,95974.0,0.05212]
[1736861151598,0.13203638,95975.0,95974.0,0.05712]
[1736861151786,0.13203638,95975.0,95974.0,0.05812]
[1736861153282,0.13203638,95975.0,95969.0,0.3608]
[1736861153283,0.052123,95970.0,95969.0,0.3608]
[1736861153574,0.052123,95970.0,95969.0,0.412923]
[1736861153966,0.13103838,95970.0,95969.0,0.412923]
[1736861154473,0.13103838,95970.0,95969.0,0.3608]
[1736861154672,0.13203838,95970.0,95969.0,0.3678]
[1736861162089,0.22358259,95970.0,95969.0,0.3678]
[1736861163883,0.13203838,95970.0,95969.0,0.3678]
[1736861165375,0.053123,95970.0,95969.0,0.3678]
[1736861166181,0.13203838,95970.0,95969.0,0.3678]
[1736861167372,0.22359503,95970.0,95969.0,0.3678]
[1736861169379,0.13203838,95970.0,95969.0,0.3678]
[1736861169889,0.13203838,95970.0,95969.0,0.007]
[1736861170819,0.052131,95955.0,95940.0,0.18732212]
[1736861170994,0.052131,95955.0,95942.0,0.0639]
[1736861171288,0.052137,95943.0,95942.0,0.0639]
[1736861172500,0.052135,95947.0,95946.0,0.052134]
[1736861172693,0.052133,95951.0,95950.0,0.052132]
[1736861172901,0.052133,95951.0,95950.0,0.412932]
[1736861173889,0.053133,95951.0,95950.0,0.412932]
[1736861174295,0.054133,95951.0,95950.0,0.412932]
[1736861175182,0.002,95951.0,95950.0,0.412932]
[1736861175589,0.054133,95951.0,95950.0,0.412932]
[1736861175791,0.002,95951.0,95950.0,0.412932]
[1736861175995,0.052131,95955.0,95954.0,0.052131]
[1736861176192,0.30061114,95977.0,95958.0,0.052128]
[1736861176387,0.30061114,95977.0,95950.0,0.413492]
[1736861176388,0.052121,95973.0,95962.0,0.3608]
[1736861176696,0.052126,95963.0,95962.0,0.412926]
[1736861177391,0.052126,95963.0,95962.0,0.3608]
[1736861177392,0.13098788,95963.0,95962.0,0.3608]
[1736861177590,0.13098788,95963.0,95962.0,0.412927]
[1736861177795,0.13098788,95963.0,95962.0,0.3608]
[1736861178695,0.14193861,95963.0,95962.0,0.3608]
[1736861178990,0.14193861,95963.0,95962.0,0.3618]
[1736861179689,0.14293861,95963.0,95962.0,0.3608]
[1736861179895,0.14293861,95963.0,95962.0,0.3628]
[1736861180801,0.14293861,95963.0,95962.0,0.002]
[1736861182704,0.50373861,95963.0,95962.0,0.002]
[1736861182894,0.45161261,95963.0,95951.0,0.0626]
[1736861183200,0.052132,95952.0,95951.0,0.0626]
[1736861184901,0.052132,95952.0,95951.0,0.114733]
[1736861186293,0.001,95952.0,95951.0,0.114733]
[1736861187795,0.001,95952.0,95951.0,0.052133]
[1736861187997,0.001,95952.0,95951.0,0.083633]
[1736861188898,0.27949214,95971.0,95951.0,0.083633]
[1736861188899,0.052127,95962.0,95951.0,0.083633]
[1736861189204,0.052125,95967.0,95966.0,0.052123]
[1736861190907,0.053125,95967.0,95966.0,0.052123]
[1736861191298,0.052129,95959.0,95958.0,0.052128]
[1736861191700,0.052127,95966.0,95965.0,0.052125]
[1736861193301,0.053127,95966.0,95965.0,0.052125]
[1736861194198,0.22294591,95966.0,95965.0,0.052125]
[1736861194600,0.052128,95962.0,95961.0,0.052127]
[1736861195105,0.22194691,95962.0,95961.0,0.052127]
[1736861196603,0.22294691,95962.0,95961.0,0.052127]
[1736861198709,0.13170978,95962.0,95961.0,0.052127]
[1736861199613,0.053128,95962.0,95961.0,0.052127]
[1736861200804,0.13170978,95962.0,95961.0,0.052127]
[1736861200996,0.07958178,95962.0,95949.0,0.3608]
[1736861201302,0.052132,95954.0,95953.0,0.05213]
[1736861201904,0.052133,95950.0,95949.0,0.3608]
[1736861202111,0.3608,95957.0,95939.0,0.18732212]
[1736861202315,0.052139,95940.0,95933.0,0.24957703]
[1736861202498,0.3608,95934.0,95933.0,0.24957703]
[1736861202703,0.412942,95934.0,95933.0,0.24957703]
[1736861203397,0.412942,95934.0,95917.0,0.05427421]
[1736861203398,0.052151,95918.0,95917.0,0.05427421]
[1736861203599,0.052151,95918.0,95917.0,0.05371421]
[1736861204208,0.052151,95918.0,95917.0,0.00156321]
[1736861205009,0.053151,95918.0,95917.0,0.00156321]
[1736861205916,0.052151,95918.0,95917.0,0.00156321]
[1736861206111,0.053151,95918.0,95917.0,0.00156321]
[1736861217317,0.052153,95915.0,95912.0,0.052154]
[1736861217718,0.001,95918.0,95912.0,0.052154]
[1736861218026,0.052153,95914.0,95913.0,0.052154]
[1736861218526,0.001,95918.0,95917.0,0.052151]
[1736861218721,0.001,95918.0,95917.0,0.412951]
[1736861219426,0.052144,95932.0,95931.0,0.052143]
[1736861220126,0.06287499,95932.0,95931.0,0.052143]
[1736861221027,0.052146,95927.0,95926.0,0.147746]
[1736861222134,0.052146,95927.0,95926.0,0.0956]
[1736861222822,0.053146,95927.0,95926.0,0.0956]
[1736861223127,0.053146,95927.0,95917.0,0.3608]
[1736861223128,0.052151,95918.0,95917.0,0.3608]
[1736861223524,0.052151,95918.0,95912.0,0.084254]
[1736861223525,0.052153,95915.0,95912.0,0.084254]
[1736861223819,0.052154,95913.0,95912.0,0.084254]
[1736861224229,0.052154,95913.0,95912.0,0.0321]
[1736861226025,0.053154,95913.0,95912.0,0.0321]
[1736861227328,0.054154,95913.0,95912.0,0.0321]
[1736861228031,0.052156,95909.0,95908.0,0.0648]
[1736861228227,0.002,95913.0,95905.0,0.00156395]
[1736861228426,0.052157,95906.0,95905.0,0.00156395]
[1736861230229,0.053157,95906.0,95905.0,0.00156395]
[1736861231435,0.001,95906.0,95905.0,0.03426395]
[1736861232825,0.052148,95925.0,95907.0,0.05084789]
[1736861233029,0.052148,95925.0,95924.0,0.3608]
[1736861233420,0.052148,95925.0,95924.0,0.3935]
[1736861233733,0.052148,95925.0,95924.0,0.4246]
[1736861234433,0.053148,95925.0,95924.0,0.4246]
[1736861234637,0.053148,95925.0,95924.0,0.0638]
[1736861235238,0.053148,95925.0,95924.0,0.0327]
[1736861235427,0.13693163,95925.0,95924.0,0.0327]
[1736861237233,0.13693163,95925.0,95924.0,0.0337]
[1736861237939,0.23423105,95925.0,95924.0,0.0337]
[1736861238129,0.23423105,95925.0,95924.0,0.085848]
[1736861240033,0.23423105,95925.0,95924.0,0.446648]
[1736861241437,0.13693163,95925.0,95924.0,0.446648]
[1736861242447,0.053148,95925.0,95924.0,0.446648]
[1736861243739,0.13693163,95925.0,95924.0,0.446648]
[1736861246836,0.053148,95925.0,95924.0,0.446648]
[1736861252539,0.13208291,95925.0,95924.0,0.446648]
[1736861254339,0.13208291,95925.0,95924.0,0.413948]
[1736861256140,0.13208291,95925.0,95924.0,0.053148]
[1736861256647,0.13108291,95925.0,95924.0,0.053148]
[1736861256852,0.13108291,95925.0,95924.0,0.052148]
[1736861257542,0.13108291,95925.0,95924.0,0.412948]
[1736861258342,0.13108291,95925.0,95924.0,0.3608]
[1736861258647,0.052154,95914.0,95910.0,0.052155]
[1736861258851,0.052148,95924.0,95913.0,0.052153]
[1736861259150,0.052153,95914.0,95913.0,0.052153]
[1736861261852,0.06288297,95914.0,95913.0,0.052153]
[1736861262050,0.06288297,95914.0,95909.0,0.0311]
[1736861262253,0.06288297,95914.0,95913.0,0.052153]
[1736861262545,0.06288297,95914.0,95909.0,0.0311]
[1736861262546,0.052155,95910.0,95909.0,0.0311]
[1736861265940,0.053155,95910.0,95909.0,0.0311]
[1736861266753,0.13209867,95910.0,95909.0,0.0311]
[1736861267552,0.07994367,95910.0,95908.0,0.36136]
[1736861267750,0.052156,95909.0,95908.0,0.00056]
[1736861267965,0.052156,95909.0,95880.0,0.00339177]
[1736861267966,0.3608,95909.0,95880.0,0.00339177]
[1736861268156,0.3608,95884.0,95880.0,0.00339177]
[1736861268459,0.052171,95881.0,95880.0,0.00339177]
[1736861268750,0.052171,95881.0,95878.0,0.24957703]
[1736861268960,0.052172,95879.0,95878.0,0.24957703]
[1736861269252,0.052176,95872.0,95846.0,0.01057542]
[1736861269454,0.05218,95864.0,95858.0,0.3608]
[1736861269653,0.41298,95864.0,95854.0,0.0614]
[1736861269843,0.052185,95855.0,95854.0,0.0614]
[1736861270552,0.052187,95852.0,95851.0,0.00156487]
[1736861271254,0.052194,95838.0,95836.0,0.01094758]
[1736861271551,0.0522,95827.0,95826.0,0.3608]
[1736861272554,0.3608,95842.0,95826.0,0.3608]
[1736861272751,0.052196,95836.0,95832.0,0.052197]
[1736861273147,0.001,95838.0,95836.0,0.052195]
[1736861273656,0.052191,95844.0,95838.0,0.052194]
[1736861274045,0.052191,95844.0,95837.0,0.0317]
[1736861274046,0.052188,95850.0,95842.0,0.052192]
[1736861274247,0.37161377,95852.0,95843.0,0.0315]
[1736861274449,0.052189,95849.0,95846.0,0.05219]
[1736861274761,0.052185,95856.0,95850.0,0.052188]
[1736861274951,0.3608,95863.0,95848.0,0.3608]
[1736861275147,0.3608,95863.0,95853.0,0.10438324]
[1736861275359,0.3608,95874.0,95853.0,0.10438324]
[1736861275360,0.412975,95874.0,95864.0,0.05218]
[1736861275658,0.412975,95874.0,95870.0,0.052177]
[1736861275659,0.06311295,95873.0,95870.0,0.052177]
[1736861275846,0.052175,95873.0,95870.0,0.052177]
[1736861276051,0.052175,95873.0,95866.0,0.3608]
[1736861276350,0.052176,95871.0,95865.0,0.0315]
[1736861276551,0.3608,95874.0,95865.0,0.0315]
[1736861276748,0.3608,95874.0,95866.0,0.3608]
[1736861277060,0.052177,95870.0,95866.0,0.412979]
[1736861277852,0.01056551,95872.0,95866.0,0.3608]
[1736861278054,0.052178,95868.0,95866.0,0.3608]
[1736861279056,0.01256551,95872.0,95867.0,0.052179]
[1736861279354,0.007,95868.0,95866.0,0.3608]
[1736861279546,0.059178,95868.0,95866.0,0.3608]
[1736861280659,0.007,95868.0,95866.0,0.412979]
[1736861280958,0.007,95868.0,95866.0,0.3608]
[1736861281255,0.052186,95853.0,95846.0,0.3608]
[1736861281459,0.00235775,95855.0,95847.0,0.0303]
[1736861281659,0.052187,95851.0,95847.0,0.0303]
[1736861282359,0.00235775,95855.0,95854.0,0.052186]
[1736861282558,0.00235775,95855.0,95854.0,0.412986]
[1736861283149,0.01054394,95859.0,95854.0,0.3608]
[1736861283357,0.052183,95859.0,95858.0,0.052184]
[1736861283767,0.01065792,95861.0,95860.0,0.052182]
[1736861284065,0.052175,95875.0,95860.0,0.052182]
[1736861284266,0.052182,95861.0,95860.0,0.052182]
[1736861284759,0.052184,95858.0,95857.0,0.052184]
[1736861285157,0.052177,95871.0,95854.0,0.3608]
[1736861285357,0.054185,95855.0,95854.0,0.3608]
[1736861285855,0.052185,95855.0,95854.0,0.3608]
[1736861286561,0.052185,95855.0,95854.0,0.412986]
[1736861286959,0.052185,95855.0,95854.0,0.3608]
[1736861287566,0.054185,95855.0,95854.0,0.412986]
[1736861288558,0.056185,95855.0,95854.0,0.412986]
[1736861288962,0.056185,95855.0,95854.0,0.3608]
[1736861295577,0.056185,95855.0,95840.0,0.001565]
[1736861295578,0.052193,95841.0,95840.0,0.001565]
[1736861296769,0.052199,95830.0,95829.0,0.3608]
[1736861297788,0.14484104,95841.0,95829.0,0.412999]
[1736861297974,0.14484104,95841.0,95838.0,0.3608]
[1736861297975,0.09264804,95841.0,95838.0,0.3608]
[1736861298175,0.3628,95855.0,95838.0,0.3608]
[1736861298482,0.052188,95849.0,95848.0,0.3608]
[1736861300290,0.001,95849.0,95848.0,0.412989]
[1736861300786,0.002,95849.0,95848.0,0.412989]
[1736861301176,0.054188,95849.0,95848.0,0.412989]
[1736861302691,0.053188,95849.0,95848.0,0.412989]
[1736861302994,0.054188,95849.0,95848.0,0.412989]
[1736861304985,0.15941792,95849.0,95848.0,0.412989]
[1736861305177,0.15841792,95849.0,95848.0,0.412989]
[1736861305376,0.15841792,95849.0,95848.0,0.052189]
[1736861307085,0.10622992,95849.0,95848.0,0.052189]
[1736861307281,0.05632992,95849.0,95848.0,0.052189]
[1736861307694,0.0023589,95858.0,95857.0,0.052184]
[1736861307885,0.0023589,95858.0,95857.0,0.412984]
[1736861309190,0.0053589,95858.0,95857.0,0.412984]
[1736861309387,0.09335934,95858.0,95857.0,0.412984]
[1736861309791,0.14554334,95858.0,95857.0,0.412984]
[1736861310190,0.14554334,95858.0,95857.0,0.3608]
[1736861310791,0.14554334,95858.0,95857.0,0.412984]
[1736861311291,0.09335934,95858.0,95857.0,0.412984]
[1736861312100,0.09535934,95858.0,95857.0,0.412984]
[1736861312589,0.0073589,95858.0,95857.0,0.412984]
[1736861312787,0.052174,95877.0,95876.0,0.052173]
[1736861312992,0.052174,95877.0,95872.0,0.3608]
[1736861313288,0.052175,95873.0,95872.0,0.052176]
[1736861315199,0.08800407,95873.0,95872.0,0.052176]
[1736861315394,0.14417907,95873.0,95872.0,0.052176]
[1736861316090,0.15317907,95873.0,95872.0,0.052176]
[1736861317900,0.10100407,95873.0,95872.0,0.052176]
[1736861318505,0.15317907,95873.0,95872.0,0.052176]
[1736861320400,0.15317907,95873.0,95872.0,0.042176]
[1736861320805,0.10100407,95873.0,95872.0,0.042176]
[1736861321005,0.15317907,95873.0,95872.0,0.042176]
[1736861322014,0.064175,95873.0,95872.0,0.042176]
[1736861322208,0.060175,95873.0,95872.0,0.042176]
[1736861323425,0.008,95873.0,95872.0,0.042176]
[1736861326102,0.060175,95873.0,95872.0,0.042176]
[1736861327816,0.14820641,95873.0,95872.0,0.042176]
[1736861328813,0.09603141,95873.0,95872.0,0.042176]
[1736861329410,0.14820641,95873.0,95872.0,0.042176]
[1736861329613,0.052177,95870.0,95869.0,0.412977]
[1736861330309,0.09603141,95873.0,95872.0,0.052176]
[1736861330708,0.14820641,95873.0,95872.0,0.052176]
[1736861330910,0.09603141,95873.0,95872.0,0.052176]
[1736861331419,0.09303141,95873.0,95872.0,0.052176]
[1736861331921,0.08803141,95873.0,95872.0,0.052176]
[1736861332419,0.08903141,95873.0,95872.0,0.055176]
[1736861334513,0.001,95873.0,95872.0,0.055176]
[1736861335023,0.24849214,95908.0,95885.0,0.052168]
[1736861335223,0.62223036,95902.0,95894.0,0.412964]
[1736861335917,0.001,95902.0,95894.0,0.412964]
[1736861336118,0.052155,95912.0,95901.0,0.41296]